Cogmind - Beta 13 @@@ ROGUE MODE // 2024.06.17 @ 21:47:16 Player: Lunace Result: Self-destructed Performance ------------- Evolutions (9) 4500 Regions Visited (22) 4400 Robots Destroyed (136) 680 Value Destroyed (5000) 5000 Prototype IDs (56) 1120 Alien Tech Used (2) 400 Bonus (3303) 3303 TOTAL SCORE: 19403 Bonus ------- High Alert Combat Kills 884 Follower Combat Kills 1589 Entered Garrisons 200 Aligned with FarCom 300 Acquired ECA 300 Met Zhirov 300 Friendly Fire -270 Cogmind --------- Core Integrity 608/1600 Matter 191/300 Energy 71/100 System Corruption 4% Temperature Cool (64) Movement Core (50) Location -1/Access Parts ------- > --- POWER (2) -------- (None) > --- PROPULSION (6) --- (None) > --- UTILITY (15) ----- Experimental Optical Array Improved Melee Analysis Suite > --- WEAPON (2) ------- (None) > --- INVENTORY (5) ---- Quantum Reactor Medium Storage Unit Peak State ------------ > --- POWER ------------ Fusion Reactor Light Quantum Reactor > --- PROPULSION ------- Cooled Nuclear Pulse Thruster Cooled Nuclear Pulse Thruster Cooled Nuclear Pulse Thruster Impulse Thruster Q-thruster Q-thruster > --- UTILITY ---------- Makeshift Trap Scanner Enhanced Optical Array Experimental Optical Array Advanced Signal Interpreter Improved Melee Analysis Suite Improved Melee Analysis Suite Core Analyzer Nanoactuators Improved Transmission Jammer Experimental Weapon Shielding Improved System Shield Advanced System Shield Advanced Component Analysis Suite > --- WEAPON ----------- Advanced Datajack Vibroblade > --- INVENTORY -------- Light Quantum Reactor Combat Linear Gravjet Transdimensional Reconstructor Enhanced Nova Cannon Fusion Bomb Launcher [Rating: 153] Favorites ----------- Power Ion Engine Engine Ion Engine Power Core Light Nuclear Core Reactor Fusion Reactor Propulsion Light Treads Treads Light Treads Leg Titanium Leg Hover Unit Linear Gravjet Flight Unit Improved Cesium-ion Thruster Utility Core Analyzer Device Seismic Detector Storage Large Storage Unit Processor Core Analyzer Hackware System Shield Protection Experimental Weapon Shielding Weapon Medium Laser Energy Gun Medium Laser Energy Cannon Latent Energy Streamer Ballistic Gun Assault Rifle Launcher Grenade Launcher Impact Weapon Impact Mace Slashing Weapon Greatsword Piercing Weapon Spear Special Melee Weapon Advanced Datajack Build | -11 -10 -10 -10 -9 -8 -7 -7 -7 -7 -7 -6 -5 -5 -5 -4 -4 -4 -4 -3 -3 -2 -1 ------- Run | Yrd Mat Min Exi Min Mat Fac Was Fac Gar Fac Fac Fac Was Fac Fac Upp Upp Zhi Pro Res Res Acc Slots Evolved 18 | . . . . . 4 2 . . . . 2 2 . . 2 . . . . 2 2 2 Power 1 | . . . . . . . . . . . . . . . 1 . . . . . . . Propulsion 4 | . . . . . 2 . . . . . . . . . 1 . . . . 1 . . Utility 13 | . . . . . 2 2 . . . . 2 2 . . . . . . . 1 2 2 Weapon . | . . . . . . . . . . . . . . . . . . . . . . . Parts Attached 222 | 8 1 1 . . 16 17 1 6 23 23 9 19 1 16 6 3 6 8 2 18 27 11 Power 26 | 2 . . . . 2 1 . 1 3 3 1 1 1 4 . . . 1 . 3 3 . Engine 11 | 2 . . . . 2 . . . 3 3 . . . 1 . . . . . . . . Core 7 | . . . . . . 1 . 1 . . 1 1 . 1 . . . . . 2 . . Reactor 8 | . . . . . . . . . . . . . 1 2 . . . 1 . 1 3 . Propulsion 79 | 2 . . . . 5 5 1 2 11 10 2 10 . 2 3 . 4 3 1 3 12 3 Treads 7 | 2 . . . . . . . . 5 . . . . . . . . . . . . . Leg 12 | . . . . . . . . . 5 5 . . . . . . 1 . . . 1 . Wheel . | . . . . . . . . . . . . . . . . . . . . . . . Hover 39 | . . . . . 5 5 1 2 1 . 2 10 . 2 3 . 1 . . . 5 2 Flight 21 | . . . . . . . . . . 5 . . . . . . 2 3 1 3 6 1 Utility 82 | 2 1 . . . 7 6 . 3 3 6 6 7 . 8 2 2 2 4 1 11 8 3 Device 47 | 1 . . . . 3 3 . 1 3 4 3 3 . 6 1 2 2 2 . 9 2 2 Storage 4 | 1 1 . . . 1 . . 1 . . . . . . . . . . . . . . Processor 22 | . . . . . 2 3 . . . 1 1 3 . 2 1 . . . 1 1 6 1 Hackware 8 | . . . . . 1 . . 1 . 1 2 1 . . . . . 1 . 1 . . Protection 1 | . . . . . . . . . . . . . . . . . . 1 . . . . Artifact . | . . . . . . . . . . . . . . . . . . . . . . . Weapon 35 | 2 . 1 . . 2 5 . . 6 4 . 1 . 2 1 1 . . . 1 4 5 Energy Gun 3 | 1 . . . . . . . . 1 . . . . . . . . . . . . 1 Energy Cannon 5 | . . . . . . . . . 2 . . . . 1 1 . . . . . . 1 Ballistic Gun 4 | 1 . . . . 1 . . . 1 1 . . . . . . . . . . . . Ballistic Cannon . | . . . . . . . . . . . . . . . . . . . . . . . Launcher 6 | . . 1 . . . . . . 2 . . . . . . . . . . 1 1 1 Special Weapon . | . . . . . . . . . . . . . . . . . . . . . . . Impact Weapon 3 | . . . . . 1 . . . . 1 . 1 . . . . . . . . . . Slashing Weapon 8 | . . . . . . 3 . . . 1 . . . 1 . . . . . . 1 2 Piercing Weapon 2 | . . . . . . . . . . 1 . . . . . 1 . . . . . . Special Melee Weapon 4 | . . . . . . 2 . . . . . . . . . . . . . . 2 . Unidentified Prototypes 16 | . . . . . 1 1 . . . 2 . . . . . . . 5 . 2 5 . Corrupted Parts 1 | . . . . . . . . . . 1 . . . . . . . . . . . . System Corruption 5 | . . . . . . . . . . 5 . . . . . . . . . . . . Parts Lost 84 | . . . . . 3 2 . . 17 1 . 7 . 6 . 3 8 . . 1 26 10 Power 8 | . . . . . . . . . 3 . . 1 . 2 . . 1 . . . 1 . Propulsion 33 | . . . . . 2 1 . . 7 . . 2 . 2 . 1 4 . . . 11 3 Utility 32 | . . . . . . 1 . . 3 . . 4 . 1 . 2 3 . . 1 13 4 Weapon 11 | . . . . . 1 . . . 4 1 . . . 1 . . . . . . 1 3 Highest Loss Streak 21 | . . . . . 3 1 . . 10 1 . 4 . 4 . 2 5 . . 1 21 5 To Critical Strikes . | . . . . . . . . . . . . . . . . . . . . . . . Average Slot Usage (%) 84 | . 100 100 100 92 76 93 83 86 76 87 96 87 100 94 72 81 54 68 89 94 74 18 Engine 5 | . 14 14 14 14 9 4 . . 5 3 2 . . . 5 5 3 . . . . . Core 1 | . . . . . . 2 7 7 1 . 3 5 . . . . . . . 2 . . Treads 8 | . 28 28 28 28 8 . . . 5 1 . . . . . . . . . . . . Leg 3 | . . . . . . . . . 10 19 . . . . . . 1 . . . . . Hover 7 | . . . . . 15 26 29 30 5 . . 16 23 21 12 21 6 . . . 2 . Flight 3 | . . . . . . . . . . 8 25 1 . . . . . 18 26 28 15 . Device 10 | . 14 14 14 6 10 7 7 9 6 8 18 18 17 17 13 15 6 10 11 13 12 3 Storage 6 | . 14 14 14 14 9 7 7 7 7 5 . . . . . . . . . . . . Processor 18 | . . . . . 5 27 23 23 23 24 26 30 35 37 38 33 30 26 29 27 22 12 Hackware 1 | . . . . . 7 1 . . . . 4 2 5 . . . . 1 5 4 7 . Energy Gun 4 | . 14 14 14 14 4 . . . 3 3 . . . . . . . . . . . . Ballistic Gun 2 | . 14 10 . . . . . . 2 5 . . . . . . . . . . . . Launcher 2 | . . 3 14 14 3 . . . 1 . . . . . . . . . . 1 . . Slashing Weapon 1 | . . . . . . 6 7 7 1 . . . . . 1 . . . . . 3 1 Piercing Weapon 1 | . . . . . . . . . . . 6 5 5 3 . 4 5 5 5 4 . . Naked Turns . | . . . . . . . . . . . . . . . . . . . . . . . Heaviest Build 44 | 15 30 31 31 31 33 21 21 31 44 42 22 21 27 36 28 25 23 23 23 37 41 4 Greatest Support 80 | 40 40 40 40 40 40 31 36 38 80 68 29 40 36 40 43 43 34 28 30 40 44 24 Greatest Overweight (x) 3 | . . . . . 2 . . . 3 1 . . . . . . 1 . . . 1 1 Average Overweight (x) . | . . . . . . . . . . . . . . . . . . . . . . . Largest Inventory Capacity 15 | 8 15 15 15 15 15 10 10 15 15 15 5 5 5 5 5 5 5 5 5 5 5 5 Average Capacity 10 | 7 8 15 15 15 13 10 10 12 15 12 5 5 5 5 5 5 5 5 5 5 5 5 Most Carried 15 | 2 9 12 15 15 15 10 10 10 8 11 5 5 5 5 5 5 5 5 5 5 5 5 Average Carried 7 | 1 4 10 13 15 12 9 9 8 6 7 3 3 4 4 2 4 4 4 5 4 4 4 Final Capacity 15 | 8 15 15 15 15 10 10 10 15 15 5 5 5 5 5 5 5 5 5 5 5 5 5 Final Carried 15 | 2 9 12 15 15 10 9 9 8 8 4 4 3 5 2 5 5 4 5 5 5 4 2 Class Distribution -------------------- 40% | Mutant 19% | Scavenger-Mutant 17% | Scavenger-Scout 7% | Scout 6% | Scavenger-Sprinter 4% | Hacker-Sprinter Dominant Class ---------------- Mutant | -10/Materials Mutant | -10/Mines Mutant | -10/Exiles Mutant | -9/Mines Mutant | -8/Materials Scavenger-Scout | -7/Factory Scavenger-Scout | -7/Waste Scavenger-Scout | -7/Factory Scavenger-Mutant | -7/Garrison Mutant | -7/Factory Scout | -6/Factory Scavenger-Gladiator | -5/Factory Scavenger-Sprinter | -5/Waste Scavenger-Scout | -5/Factory Scavenger-Scout | -4/Factory Scavenger-Scout | -4/Upper Caves Mutant | -4/Upper Caves Scavenger-Sprinter | -4/Zhirov Scavenger-Sprinter | -3/Proximity Caves Scavenger-Sprinter | -3/Research Hacker-Sprinter | -2/Research Mutant | -1/Access Resources | -11 -10 -10 -10 -9 -8 -7 -7 -7 -7 -7 -6 -5 -5 -5 -4 -4 -4 -4 -3 -3 -2 -1 ----------- Run | Yrd Mat Min Exi Min Mat Fac Was Fac Gar Fac Fac Fac Was Fac Fac Upp Upp Zhi Pro Res Res Acc Matter Collected 2901 | 250 84 10 43 33 90 331 19 69 421 384 80 211 . 173 . 61 69 100 20 110 242 101 Remotely . | . . . . . . . . . . . . . . . . . . . . . . . Salvage Created 6518 | 35 188 13 . 44 96 503 . 150 1220 329 223 749 . 521 . . 407 478 38 233 1087 204 Parts 309 | 7 11 3 . 11 3 26 . 5 62 24 7 24 . 18 . . 24 3 1 13 52 15 Haulers Intercepted 12 | . . . . . 1 2 . . . 1 2 2 . 1 . . . . . . 3 . Recyclers Shooed 3 | . . . . . . 1 . . . . . 2 . . . . . . . . . . Parts Field Recycled . | . . . . . . . . . . . . . . . . . . . . . . . Retrieved Matter . | . . . . . . . . . . . . . . . . . . . . . . . Parts Self-Destructed 18 | . . . . . . . . . . . . . . . . . 16 2 . . . . Prevented 2 | . . . . . . . . . . . . . . . . . 2 . . . . . Kills | -11 -10 -10 -10 -9 -8 -7 -7 -7 -7 -7 -6 -5 -5 -5 -4 -4 -4 -4 -3 -3 -2 -1 ------- Run | Yrd Mat Min Exi Min Mat Fac Was Fac Gar Fac Fac Fac Was Fac Fac Upp Upp Zhi Pro Res Res Acc Combat Hostiles Destroyed 91 | . 4 3 . 8 1 2 . 1 22 7 . 6 . 4 . . 10 . 1 5 12 5 Melee 39 | . . . . . . 2 . 1 5 . . 3 . 1 . . 10 . 1 5 7 4 Guns 16 | . 4 1 . . 1 . . . 3 7 . . . . . . . . . . . . AOE 32 | . . 2 . 8 . . . . 13 . . . . 3 . . . . . . 5 1 Classes Destroyed 16 | 1 2 1 . . 2 5 . . 2 . . . . 2 . . 1 . . . . . Worker 5 | . . . . . . 1 . . . . . 2 . . . . . . . 1 1 . Tunneler 4 | 2 . . . . . 1 . . . . 1 . . . . . . . . . . . Hauler 12 | . . . . . 1 2 . . . 1 2 2 . 1 . . . . . . 3 . Recycler 7 | . . . . . . 3 . 1 . . . 1 . 1 . . . . . . 1 . Mechanic 1 | . . . . . . . . . . . . . . 1 . . . . . . . . Operator 1 | . . . . . . 1 . . . . . . . . . . . . . . . . Watcher 13 | . 1 . . . . 2 . 1 2 1 . 2 . 1 . . . . . 1 2 . Swarmer 41 | . . 3 . 8 . . . . 5 5 . . . . . . 4 . 1 5 7 3 Cutter 1 | . . . . . . . . . . . . . . 1 . . . . . . . . Grunt 20 | . 4 . . . . . . . 9 1 . 1 . 2 . . 3 . . . . . Duelist 2 | . . . . . 1 . . . . . . . . 1 . . . . . . . . Sentry 7 | . . . . . . . . . 6 1 . . . . . . . . . . . . Specialist 2 | . . . . . . . . . 2 . . . . . . . . . . . . . Hunter 5 | . . . . . . 1 . 1 . . . 1 . . . . . . . . 2 . Programmer 12 | . . . . . . 1 . . . . . 4 . . . . 2 . . . 3 2 Master Thief 1 | . . . . . . . . . . . . . . . . . 1 . . . . . Surgeon 2 | . . . . . . . . . . . . . . 2 . . . . . . . . Best Kill Streak 8 | 1 2 3 . 4 1 3 . 1 3 4 1 8 . 4 . . 4 . 1 4 6 2 Combat Bots Only 5 | . 2 3 . 4 1 1 . 1 3 4 . 5 . 3 . . 4 . 1 3 5 2 Max Kills in Single Turn 6 | 1 1 1 . 3 1 1 . 1 3 1 1 1 . 6 . . 1 . 1 1 3 1 Gunslinging . | . . . . . . . . . . . . . . . . . . . . . . . Exploded 3 | . . 1 . 3 . . . . 3 . . . . 3 . . . . . . 3 1 Melee 1 | . . . . . . 1 . 1 1 . . 1 . 1 . . 1 . 1 1 1 1 Uniques/NPCs Destroyed . | . . . . . . . . . . . . . . . . . . . . . . . Combat | -11 -10 -10 -10 -9 -8 -7 -7 -7 -7 -7 -6 -5 -5 -5 -4 -4 -4 -4 -3 -3 -2 -1 -------- Run | Yrd Mat Min Exi Min Mat Fac Was Fac Gar Fac Fac Fac Was Fac Fac Upp Upp Zhi Pro Res Res Acc Hostile Shots Fired 1027 | . 19 8 . 28 28 10 . 2 289 52 . 84 . 24 . 32 82 . 3 23 214 129 Missed 383 | . 4 3 . 9 6 4 . 1 109 23 . 27 . 10 . 16 27 . 1 10 85 48 Damage Taken 11446 | . 165 41 . 214 428 126 . 20 1974 421 . 1096 . 558 . 250 986 . 49 340 3103 1675 Core 3889 | . 42 6 . 19 112 24 . . 368 62 . 265 . 47 . 61 524 . . 57 1310 992 Absorbed by Shields 4 | . . . . . . . . . 4 . . . . . . . . . . . . . Redirected to Shielding 138 | . . . . . . . . . . . . . . . . . . . . 94 44 . Regen/Repaired (Parts) 198 | . . . . . 18 . 4 20 . . . . 45 13 98 . . . . . . . Core Remaining (%) 67 | 100 . . . 73 79 . . . . 35 100 . . 68 . . . . 49 95 8 . Volleys Fired 141 | 12 17 4 . 10 6 . . . 42 27 . . . 12 1 . . . . . 3 7 Largest 2 | 2 2 2 . 1 2 . . . 2 2 . . . 1 1 . . . . . 1 1 Hottest 127 | 70 70 70 . 50 70 . . . 127 127 . . . 120 120 . . . . . 52 120 Shots Fired 180 | 13 33 5 . 10 10 . . . 54 32 . . . 12 1 . . . . . 3 7 Gun 122 | 13 33 2 . 1 10 . . . 31 32 . . . . . . . . . . . . Cannon 30 | . . . . . . . . . 13 . . . . 12 1 . . . . . . 4 Launcher 28 | . . 3 . 9 . . . . 10 . . . . . . . . . . . 3 3 Special . | . . . . . . . . . . . . . . . . . . . . . . . Kinetic 61 | 1 17 1 . . 4 . . . 12 26 . . . . . . . . . . . . Thermal 78 | 12 16 1 . 1 6 . . . 19 6 . . . 12 1 . . . . . . 4 Explosive 20 | . . 3 . 9 . . . . 2 . . . . . . . . . . . 3 3 Electromagnetic 21 | . . . . . . . . . 21 . . . . . . . . . . . . . Robot Hit Streak 14 | 2 7 6 . 7 4 . . . 14 4 . . . 3 . . . . . . 1 3 Robot Miss Streak 6 | 2 2 . . 6 2 . . . 5 3 . . . 2 . . . . . . 2 1 Penetration Max . | . . . . . . . . . . . . . . . . . . . . . . . Secondary Targets 2 | . 1 . . . . . . . . 1 . . . . . . . . . . . . Max Gunslinging Chain 1 | . 1 . . . . . . . . 1 . . . . . . . . . . . . Shots Hit Robots 284 | 7 22 3 . 1 7 22 . 4 56 22 4 33 . 17 . . 17 7 2 9 37 14 Core Hits 184 | 2 10 4 . 11 4 7 . 2 61 13 3 6 . 10 . . 10 3 1 7 22 8 Critical Kills 2 | . . . . . . . . . 1 . . 1 . . . . . . . . . . Critical Parts Destroyed 6 | . . . . . . . . . 1 2 . 1 . 2 . . . . . . . . Critical Strikes 40 | 1 . . . 1 . 2 . . 6 2 1 5 . 4 . . 5 3 . 3 5 2 Burn 2 | 1 . . . 1 . . . . . . . . . . . . . . . . . . Destroy 3 | . . . . . . . . . 2 1 . . . . . . . . . . . . Smash 5 | . . . . . . . . . . 1 . 2 . 2 . . . . . . . . Sever 12 | . . . . . . 2 . . 4 . . . . . . . . . . . 4 2 Impale 18 | . . . . . . . . . . . 1 3 . 2 . . 5 3 . 3 1 . Melee Attacks 329 | . . . . . 3 43 . 8 33 5 25 54 . 15 3 1 33 7 5 22 54 18 Impact 34 | . . . . . 3 2 . . . 3 4 19 . 3 . . . . . . . . Slashing 152 | . . . . . . 40 . 8 33 2 . . . 3 3 . . . . . 45 18 Piercing 142 | . . . . . . . . . . . 21 35 . 9 . 1 33 7 5 22 9 . Sneak Attacks 37 | . . . . . 1 11 . 1 1 1 3 8 . 3 . . 1 . . 1 6 . Combat Hostiles 2 | . . . . . . 1 . . . . . . . . . . 1 . . . . . Follow-up Attacks 4 | . . . . . . . . . . . . 1 . 3 . . . . . . . . Damage Inflicted 15494 | 88 269 269 . 359 207 1230 . 290 2796 670 256 1715 . 1550 . . 667 485 74 458 2824 1287 Guns 1536 | 88 269 12 . 12 77 . . . 613 465 . . . . . . . . . . . . Cannons 393 | . . . . . . . . . 52 . . . . 214 . . . . . . . 127 Explosions 3899 | . . 257 . 347 . . . . 1202 . . . . 806 . . . . . . 653 634 Melee 9666 | . . . . . 130 1230 . 290 929 205 256 1715 . 530 . . 667 485 74 458 2171 526 Ramming . | . . . . . . . . . . . . . . . . . . . . . . . Kinetic 761 | 13 140 . . . 40 . . . 187 381 . . . . . . . . . . . . Thermal 1922 | 75 129 12 . 12 37 . . . 426 84 . . . 1020 . . . . . . . 127 Explosive 2044 | . . 257 . 347 . . . . 153 . . . . . . . . . . . 653 634 Electromagnetic 1101 | . . . . . . . . . 1101 . . . . . . . . . . . . . Impact 1330 | . . . . . 130 79 . . . 110 . 864 . 147 . . . . . . . . Slashing 4838 | . . . . . . 1151 . 290 929 95 . . . 45 . . . . . . 1802 526 Piercing 3498 | . . . . . . . . . . . 256 851 . 338 . . 667 485 74 458 369 . Highest Corruption 30 | . . . . . . 4 4 4 25 30 . 4 4 4 . . . . . 1 22 4 Average Corruption 14 | . . . . . . 3 4 4 18 27 . 3 4 3 . . . . . 1 18 3 Corruption Purged 4 | . . . . . . . . . . . . . . 4 . . . . . . . . Corruption Blocked . | . . . . . . . . . . . . . . . . . . . . . . . Effects 134 | . . . . . . 15 2 4 59 29 . 4 4 3 . . . . . . 12 2 Message Errors 27 | . . . . . . 3 . . 13 7 . 2 1 . . . . . . . 1 . Matter Fused 42 | . . . . . . 6 1 1 19 7 . 2 1 1 . . . . . . 2 2 Heat Flow Errors 18 | . . . . . . . . 2 10 4 . . 1 . . . . . . . 1 . Energy Discharges 10 | . . . . . . 2 . 1 2 . . . 1 2 . . . . . . 2 . Parts Rejected 3 | . . . . . . . . . 1 1 . . . . . . . . . . 1 . Parts Fused 2 | . . . . . . . 1 . 1 . . . . . . . . . . . . . Data Loss (minor) 12 | . . . . . . 2 . . 6 4 . . . . . . . . . . . . Data Loss (major) 3 | . . . . . . . . . 2 1 . . . . . . . . . . . . Misfires 3 | . . . . . . . . . 2 1 . . . . . . . . . . . . Alerts 3 | . . . . . . 2 . . 1 . . . . . . . . . . . . . Misdirections 8 | . . . . . . . . . 1 2 . . . . . . . . . . 5 . Weapon Failures 3 | . . . . . . . . . 1 2 . . . . . . . . . . . . Overload Shots . | . . . . . . . . . . . . . . . . . . . . . . . Overflow Damage 2355 | . . 14 . 7 . 323 . 101 105 67 . 525 . 331 . . 46 449 . 25 325 37 Projectiles 33 | . . . . . . . . . . . . 33 . . . . . . . . . . Explosions 285 | . . 14 . 7 . . . . 30 . . . . 128 . . . . . . 91 15 Melee 2037 | . . . . . . 323 . 101 75 67 . 492 . 203 . . 46 449 . 25 234 22 Knockbacks 11 | . . . . . . . . . . . . 11 . . . . . . . . . . Impact 9 | . . . . . . . . . . . . 9 . . . . . . . . . . Kinetic . | . . . . . . . . . . . . . . . . . . . . . . . Secondary 2 | . . . . . . . . . . . . 2 . . . . . . . . . . Self-Inflicted Damage 406 | . . . . 66 . . . . 213 . . . . 65 . . . . . . . 62 Shots 14 | . . . . 3 . . . . 9 . . . . 1 . . . . . . . 1 Rammed . | . . . . . . . . . . . . . . . . . . . . . . . Targets Rammed . | . . . . . . . . . . . . . . . . . . . . . . . Kicked . | . . . . . . . . . . . . . . . . . . . . . . . Crushed . | . . . . . . . . . . . . . . . . . . . . . . . Highest Temperature 359 | 40 111 9 . 10 29 . 11 253 324 287 . 16 262 359 62 9 15 2 2 234 306 64 Average Temperature 82 | 19 42 6 . 6 13 . 11 104 89 91 . 10 132 123 37 9 15 2 2 75 93 36 Received Heat Transfer 1303 | . 93 . . . 162 18 . 9 462 129 . 9 . 36 . 12 193 . . 9 171 . Effects 1 | . . . . . . . . . 1 . . . . . . . . . . . . . Energy Bleed 1 | . . . . . . . . . 1 . . . . . . . . . . . . . Siege Activations . | . . . . . . . . . . . . . . . . . . . . . . . Robots Corrupted 1 | . . . . . . . . . 1 . . . . . . . . . . . . . Combat Hostiles 1 | . . . . . . . . . 1 . . . . . . . . . . . . . Parts Fried 17 | . . . . . . 1 . . 7 . . 6 . 3 . . . . . . . . Impact Corruptions 21 | . . . . . . 2 . . . 1 . 14 . 4 . . . . . . . . Robots Melted . | . . . . . . . . . . . . . . . . . . . . . . . Combat Hostiles . | . . . . . . . . . . . . . . . . . . . . . . . Parts Melted 1 | . . . . . . . . . . . . 1 . . . . . . . . . . Heat Transferred 2487 | 296 370 37 . 111 111 . . . 555 111 . . . 785 . . . . . . . 111 Parts Sabotaged 2 | . . . . . . . . . . . . . . . . . . . . . 2 . Parts Stolen 1 | . . . . . . . . . . . . . . . . . 1 . . . . . Parts Stripped . | . . . . . . . . . . . . . . . . . . . . . . . Power Chain Reactions 1 | . . . . . . . . . 1 . . . . . . . . . . . . . Latent Energy Used 870 | . . . . . . . . . 870 . . . . . . . . . . . . . LE Corruption 18 | . . . . . . . . . 18 . . . . . . . . . . . . . Alert | -11 -10 -10 -10 -9 -8 -7 -7 -7 -7 -7 -6 -5 -5 -5 -4 -4 -4 -4 -3 -3 -2 -1 ------- Run | Yrd Mat Min Exi Min Mat Fac Was Fac Gar Fac Fac Fac Was Fac Fac Upp Upp Zhi Pro Res Res Acc Peak Influence 1467 | 10 113 87 . 251 162 390 170 378 1467 1006 543 424 88 1344 667 . . . . 335 792 542 Initial 770 | . 6 30 . . 19 73 128 107 264 770 421 266 88 61 653 . . . . 40 188 261 Average 461 | 4 62 37 . 234 85 227 150 234 1067 845 463 314 88 629 660 . . . . 175 513 319 Maximum Alert Level 4 | . . . . 1 . 1 . 1 4 3 2 2 . 4 2 . . . . 1 3 2 Low Security (%) 35 | 100 100 100 . 10 100 46 100 14 . . . . 100 12 . . . . . 60 12 . Level 1 21 | . . . . 90 . 53 . 85 2 . . 89 . 20 . . . . . 39 3 82 Level 2 17 | . . . . . . . . . 16 . 100 10 . 30 100 . . . . . 74 17 Level 3 13 | . . . . . . . . . 21 100 . . . 27 . . . . . . 9 . Level 4 12 | . . . . . . . . . 58 . . . . 9 . . . . . . . . Level 5 . | . . . . . . . . . . . . . . . . . . . . . . . High Security . | . . . . . . . . . . . . . . . . . . . . . . . Max Security . | . . . . . . . . . . . . . . . . . . . . . . . Squads Dispatched 41 | . 3 . . . . 8 . 2 . 2 1 2 . 11 1 . 1 . . 3 4 3 Investigation 11 | . 1 . . . . 2 . 1 . . 1 . . . 1 . . . . 2 1 2 Extermination 5 | . . . . . . 1 . . . . . 1 . 1 . . . . . . 2 . Reinforcement 16 | . 2 . . . . 5 . . . 2 . 1 . 5 . . . . . 1 . . Assault 6 | . . . . . . . . . . . . . . 4 . . 1 . . . 1 . Garrison 3 | . . . . . . . . 1 . . . . . 1 . . . . . . . 1 Intercept . | . . . . . . . . . . . . . . . . . . . . . . . Searches Triggered 2 | . . . . . . . . . . . . 1 . . . . . . . . 1 . Construction Impeded 1 | . . . . . . . . . . . . . . 1 . . . . . . . . Haulers Reinforced 5 | . . . . . . 2 . . . 1 . . . 2 . . . . . . . . Active Scanning Responses . | . . . . . . . . . . . . . . . . . . . . . . . Cargo Convoy Interrupts . | . . . . . . . . . . . . . . . . . . . . . . . Stealth | -11 -10 -10 -10 -9 -8 -7 -7 -7 -7 -7 -6 -5 -5 -5 -4 -4 -4 -4 -3 -3 -2 -1 --------- Run | Yrd Mat Min Exi Min Mat Fac Was Fac Gar Fac Fac Fac Was Fac Fac Upp Upp Zhi Pro Res Res Acc Distress Signals 10 | . . . . . 1 2 . . . . . 2 . 1 . . . . . . 3 1 Communications Jammed 17 | . . . . . . . . . . . . . . . . . . . . . 17 . Distress Signals 17 | . . . . . . . . . . . . . . . . . . . . . 17 . Times Spotted 279 | . 7 3 . 8 8 21 5 4 40 14 1 20 . 25 . 13 14 . 3 10 64 19 Peak Tracking Total 16 | . 2 3 . 4 6 6 3 3 5 3 1 6 . 10 . 11 7 . 3 4 16 8 Tactical Retreats 34 | . . . . . . 1 . . 11 1 . 3 . . . 2 4 . 1 . 9 2 Traps | -11 -10 -10 -10 -9 -8 -7 -7 -7 -7 -7 -6 -5 -5 -5 -4 -4 -4 -4 -3 -3 -2 -1 ------- Run | Yrd Mat Min Exi Min Mat Fac Was Fac Gar Fac Fac Fac Was Fac Fac Upp Upp Zhi Pro Res Res Acc Traps Triggered 14 | . 1 . . . . 4 . . 5 1 . 1 . . . . . . . 1 . 1 Indirectly 1 | . . . . . . . . . 1 . . . . . . . . . . . . . Trap Hack Attempts . | . . . . . . . . . . . . . . . . . . . . . . . Triggered . | . . . . . . . . . . . . . . . . . . . . . . . Disarmed . | . . . . . . . . . . . . . . . . . . . . . . . Reprogrammed . | . . . . . . . . . . . . . . . . . . . . . . . Reused 4 | . . . . . 2 . . . 2 . . . . . . . . . . . . . Traps Reconfigurated 14 | . . . . . 6 4 . . 4 . . . . . . . . . . . . . Traps Extracted . | . . . . . . . . . . . . . . . . . . . . . . . Installed . | . . . . . . . . . . . . . . . . . . . . . . . Triggered 4 | . . . . . 2 . . . 2 . . . . . . . . . . . . . Machines | -11 -10 -10 -10 -9 -8 -7 -7 -7 -7 -7 -6 -5 -5 -5 -4 -4 -4 -4 -3 -3 -2 -1 ---------- Run | Yrd Mat Min Exi Min Mat Fac Was Fac Gar Fac Fac Fac Was Fac Fac Upp Upp Zhi Pro Res Res Acc Machines Disabled 13 | . . . . 2 . 1 . . 4 . . . . 3 . . . . . . 1 2 Max in Single Turn 1 | . . . . 1 . . . . 1 . . . . 1 . . . . . . 1 1 Garrison Access 3 | . . . . . . . . . . 1 . . . . 1 . . . . . 1 . Garrison Relay 1 | . . . . . . . . . 1 . . . . . . . . . . . . . Machines Repaired . | . . . . . . . . . . . . . . . . . . . . . . . Machines Dismantled . | . . . . . . . . . . . . . . . . . . . . . . . Machines Sabotaged . | . . . . . . . . . . . . . . . . . . . . . . . Overloaded Fab Kills . | . . . . . . . . . . . . . . . . . . . . . . . Hacking | -11 -10 -10 -10 -9 -8 -7 -7 -7 -7 -7 -6 -5 -5 -5 -4 -4 -4 -4 -3 -3 -2 -1 --------- Run | Yrd Mat Min Exi Min Mat Fac Was Fac Gar Fac Fac Fac Was Fac Fac Upp Upp Zhi Pro Res Res Acc Machines Accessed 70 | . 4 . 2 1 5 9 . 3 3 7 11 2 . 3 4 . . 4 . 3 4 5 Terminals 36 | . 3 . . 1 4 6 . . 3 3 7 1 . 1 . . . . . 2 2 3 Fabricators 12 | . . . . . . 3 . 2 . 1 1 1 . 1 1 . . . . 1 1 . Repair Stations 6 | . . . . . 1 . . . . 1 . . . 1 2 . . . . . . 1 Recycling Units 5 | . 1 . . . . . . . . 1 2 . . . . . . . . . 1 . Scanalyzers . | . . . . . . . . . . . . . . . . . . . . . . . Garrison Access 5 | . . . . . . . . 1 . 1 1 . . . 1 . . . . . . 1 Total Hacks 194 | . 20 . 2 3 15 16 . 5 9 13 33 3 . 5 10 . . 17 . 10 22 11 Successful 87 | . 13 . 2 2 7 7 . 3 . 4 14 1 . 2 5 . . 17 . 3 5 2 Failed 107 | . 7 . . 1 8 9 . 2 9 9 19 2 . 3 5 . . . . 7 17 9 Catastrophic 27 | . 1 . . . 1 4 . . 2 4 4 1 . 2 . . . . . 2 2 4 Database Lockouts . | . . . . . . . . . . . . . . . . . . . . . . . Manual 65 | . 12 . 1 2 6 11 . . . 5 15 2 . 2 . . . . . 2 6 1 Terminals 121 | . 18 . . 3 12 11 . . 9 9 25 2 . 2 . . . . . 7 15 8 Fabricators 22 | . . . . . . 5 . 2 . 1 3 1 . 1 3 . . . . 3 3 . Repair Stations 13 | . . . . . 3 . . . . 1 . . . 2 6 . . . . . . 1 Recycling Units 11 | . 2 . . . . . . . . 1 4 . . . . . . . . . 4 . Scanalyzers . | . . . . . . . . . . . . . . . . . . . . . . . Garrison Access 8 | . . . . . . . . 3 . 1 1 . . . 1 . . . . . . 2 Terminal Hacks 42 | . 7 . 2 2 2 1 . . . 1 4 . . . . . . 17 . 2 2 2 Record 7 | . . . 1 . . . . . . . . . . . . . . 5 . . . 1 Part Schematic 5 | . . . . . . . . . . . 1 . . . . . . 4 . . . . Robot Schematic 1 | . 1 . . . . . . . . . . . . . . . . . . . . . Robot Analysis 6 | . 2 . . . . . . . . . . . . . . . . 4 . . . . Prototype ID Bank 8 | . 2 . . 1 . . . . . 1 . . . . . . . 4 . . . . Open Door 1 | . . . . . . . . . . . . . . . . . . . . . . 1 Branch Access Points 2 | . 1 . . . . . . . . . 1 . . . . . . . . . . . Machine Index 1 | . . . . . . . . . . . 1 . . . . . . . . . . . Terminal Index 1 | . . . . . . . . . . . . . . . . . . . . 1 . . Fabricator Index 1 | . . . . . . . . . . . 1 . . . . . . . . . . . Unreport Threat 2 | . . . . . . . . . . . . . . . . . . . . . 2 . Locate Traps 4 | . 1 . . . 1 1 . . . . . . . . . . . . . 1 . . Dispatch Records 1 | . . . . 1 . . . . . . . . . . . . . . . . . . Zone Layout 1 | . . . . . 1 . . . . . . . . . . . . . . . . . Derelict Proto ID Bank 1 | . . . 1 . . . . . . . . . . . . . . . . . . . Fabricator Hacks 10 | . . . . . . 1 . 2 . 1 3 . . . . . . . . 1 2 . Network Status 2 | . . . . . . 1 . . . . 1 . . . . . . . . . . . Load Schematic 4 | . . . . . . . . 1 . . 1 . . . . . . . . 1 1 . Build 4 | . . . . . . . . 1 . 1 1 . . . . . . . . . 1 . Repair Station Hacks 7 | . . . . . 2 . . . . . . . . 1 4 . . . . . . . Scan Component 4 | . . . . . 1 . . . . . . . . 1 2 . . . . . . . Repair 3 | . . . . . 1 . . . . . . . . . 2 . . . . . . . Recycling Unit Hacks 2 | . 1 . . . . . . . . . 1 . . . . . . . . . . . Retrieve Components 2 | . 1 . . . . . . . . . 1 . . . . . . . . . . . Scanalyzer . | . . . . . . . . . . . . . . . . . . . . . . . Garrison Access Hacks 3 | . . . . . . . . 1 . 1 . . . . 1 . . . . . . . Unlock Access 1 | . . . . . . . . 1 . . . . . . . . . . . . . . Seal Access 2 | . . . . . . . . . . 1 . . . . 1 . . . . . . . Unauthorized Hacks 23 | . 5 . . . 3 5 . . . 1 6 1 . 1 . . . . . . 1 . Terminals 20 | . 5 . . . 3 3 . . . 1 5 1 . 1 . . . . . . 1 . Assimilate 7 | . 1 . . . 1 1 . . . 1 2 . . 1 . . . . . . . . Botnet 12 | . 3 . . . 2 2 . . . . 3 1 . . . . . . . . 1 . Operators 1 | . 1 . . . . . . . . . . . . . . . . . . . . . Fabricators 2 | . . . . . . 2 . . . . . . . . . . . . . . . . Recompile 2 | . . . . . . 2 . . . . . . . . . . . . . . . . Repair Stations . | . . . . . . . . . . . . . . . . . . . . . . . Recycling Units . | . . . . . . . . . . . . . . . . . . . . . . . Scanalyzers . | . . . . . . . . . . . . . . . . . . . . . . . Garrison Access 1 | . . . . . . . . . . . 1 . . . . . . . . . . . Watchers 1 | . . . . . . . . . . . 1 . . . . . . . . . . . Data Cores Recovered . | . . . . . . . . . . . . . . . . . . . . . . . Used . | . . . . . . . . . . . . . . . . . . . . . . . Hacking Detections 55 | . 3 . . 1 5 7 . 2 3 6 9 2 . 3 3 . . . . 3 4 4 Full Trace Events 12 | . . . . . 1 . . 1 3 . 1 . . . 1 . . . . 2 1 2 Feedback Events 3 | . . . . . . . . . 2 . . . . . . . . . . 1 . . Corruption 3 | . . . . . . . . . 2 . . . . . . . . . . 1 . . Feedback Blocked . | . . . . . . . . . . . . . . . . . . . . . . . Robot Schematics Acquired 1 | . 1 . . . . . . . . . . . . . . . . . . . . . Robots Built . | . . . . . . . . . . . . . . . . . . . . . . . Authchips . | . . . . . . . . . . . . . . . . . . . . . . . Time . | . . . . . . . . . . . . . . . . . . . . . . . Total Robot Build Rating . | . . . . . . . . . . . . . . . . . . . . . . . Part Schematics Acquired 5 | . . . . . . . . . . . 1 . . . . . . 4 . . . . Parts Built 5 | . . . . . . . . 2 . . 2 . . . . . . . . . 1 . Authchips 1 | . . . . . . . . . . . 1 . . . . . . . . . . . Time 260 | . . . . . . . . 53 . 117 28 . . . . . . . . . 62 . Total Part Build Rating 27 | . . . . . . . . 12 . . 8 . . . . . . . . . 7 . Parts Repaired 3 | . . . . . 1 . . . . . . . . . 2 . . . . . . . Time 97 | . . . . . 13 . . . . . . . . . 84 . . . . . . . Parts Recycled . | . . . . . . . . . . . . . . . . . . . . . . . Recycled Matter . | . . . . . . . . . . . . . . . . . . . . . . . Retrieved Matter . | . . . . . . . . . . . . . . . . . . . . . . . Retrieved Components 2 | . 1 . . . . . . . . . 1 . . . . . . . . . . . Parts Scanalyzed . | . . . . . . . . . . . . . . . . . . . . . . . Part Schematics Acquired . | . . . . . . . . . . . . . . . . . . . . . . . Parts Damaged . | . . . . . . . . . . . . . . . . . . . . . . . Bothacking | -11 -10 -10 -10 -9 -8 -7 -7 -7 -7 -7 -6 -5 -5 -5 -4 -4 -4 -4 -3 -3 -2 -1 ------------ Run | Yrd Mat Min Exi Min Mat Fac Was Fac Gar Fac Fac Fac Was Fac Fac Upp Upp Zhi Pro Res Res Acc Used RIF Installer . | . . . . . . . . . . . . . . . . . . . . . . . Robots Hacked . | . . . . . . . . . . . . . . . . . . . . . . . Non-combat . | . . . . . . . . . . . . . . . . . . . . . . . Combat . | . . . . . . . . . . . . . . . . . . . . . . . Robot Hacks Applied . | . . . . . . . . . . . . . . . . . . . . . . . Relay Couplers Released 9 | . . . . . . . . . 5 . . . . . . . . . . . 4 . Machine Destruction 9 | . . . . . . . . . 5 . . . . . . . . . . . 4 . Fabnet Peak Effective % . | . . . . . . . . . . . . . . . . . . . . . . . Robots Rewired 6 | . . . . . . 1 . . 5 . . . . . . . . . . . . . Allies Hacked . | . . . . . . . . . . . . . . . . . . . . . . . Hacks Repelled . | . . . . . . . . . . . . . . . . . . . . . . . Allies | -11 -10 -10 -10 -9 -8 -7 -7 -7 -7 -7 -6 -5 -5 -5 -4 -4 -4 -4 -3 -3 -2 -1 -------- Run | Yrd Mat Min Exi Min Mat Fac Was Fac Gar Fac Fac Fac Was Fac Fac Upp Upp Zhi Pro Res Res Acc Total Allies 49 | . 1 . . . 1 1 18 . 5 1 1 . 20 1 . . . . . . . . Largest Group 20 | . 1 . . . 1 1 18 10 7 1 2 2 20 20 1 1 . . . . . . Highest-Rated Group 718 | . 10 . . . 10 32 434 284 187 26 36 36 718 718 26 26 . . . . . . Highest-Rated Ally 50 | . 10 . . . 10 32 35 35 31 26 26 26 50 50 26 26 . . . . . . Total Orders 2 | . . . . . . . . . . . . 2 . . . . . . . . . . STAY 1 | . . . . . . . . . . . . 1 . . . . . . . . . . FOLLOW 1 | . . . . . . . . . . . . 1 . . . . . . . . . . Ally Attacks 334 | . . . . . 7 19 135 16 47 . . . . 110 . . . . . . . . Total Damage 10370 | . . . . . 335 733 4551 455 1112 . . . . 3184 . . . . . . . . Kills 68 | . . . . . 5 11 12 5 10 . . . . 25 . . . . . . . . Allies Corrupted . | . . . . . . . . . . . . . . . . . . . . . . . Allies Melted . | . . . . . . . . . . . . . . . . . . . . . . . Turrets Deployed 3 | . . . . . 1 1 1 . . . . . . . . . . . . . . . Intel | -11 -10 -10 -10 -9 -8 -7 -7 -7 -7 -7 -6 -5 -5 -5 -4 -4 -4 -4 -3 -3 -2 -1 ------- Run | Yrd Mat Min Exi Min Mat Fac Was Fac Gar Fac Fac Fac Was Fac Fac Upp Upp Zhi Pro Res Res Acc Robot Analysis Total 6 | . 2 . . . . . . . . . . . . . . . . 4 . . . . Derelict Logs Recovered 5 | . . 1 . 1 . . . . . . . . . . . . 3 . . . . . Drone Launches . | . . . . . . . . . . . . . . . . . . . . . . . Drone Recoveries . | . . . . . . . . . . . . . . . . . . . . . . . Exploration | -11 -10 -10 -10 -9 -8 -7 -7 -7 -7 -7 -6 -5 -5 -5 -4 -4 -4 -4 -3 -3 -2 -1 ------------- Run | Yrd Mat Min Exi Min Mat Fac Was Fac Gar Fac Fac Fac Was Fac Fac Upp Upp Zhi Pro Res Res Acc Turns Passed 8570 | 124 628 639 422 400 342 599 160 162 1493 569 303 447 163 342 149 161 362 77 78 189 504 257 Spaces Moved 9220 | 57 255 381 261 233 300 806 229 219 773 550 801 590 128 443 203 330 320 155 262 456 1122 346 Core 394 | 4 . . . . . . . . . . . . . . . . 15 . . . 97 278 Treads 1471 | 53 255 381 261 233 86 . . . 181 21 . . . . . . . . . . . . Legs 529 | . . . . . . . . . 320 159 . . . . . . 50 . . . . . Wheels . | . . . . . . . . . . . . . . . . . . . . . . . Hover 3656 | . . . . . 214 806 229 219 272 . 3 590 128 443 203 330 183 . . . 13 23 Flight 3170 | . . . . . . . . . . 370 798 . . . . . 72 155 262 456 1012 45 Fastest Speed 20 | 50 160 160 160 160 45 45 48 40 40 26 26 28 28 28 38 43 34 24 24 22 20 40 Average Speed 64 | 152 160 160 160 160 88 46 49 47 141 61 26 44 28 31 39 43 65 29 24 22 28 49 Slowest Speed 320 | 160 160 160 160 160 240 48 50 50 320 200 56 56 28 38 46 52 150 34 25 25 160 100 Overloaded Moves 108 | . . . . . . . . . . . . . . . . . . . . . 108 . Propulsion Burnouts . | . . . . . . . . . . . . . . . . . . . . . . . Robots Hopped 24 | . . . . . . . 6 . . . 1 . . . . . . . . 3 11 3 Cave-ins Triggered . | . . . . . . . . . . . . . . . . . . . . . . . Teleports 1 | . . . . . . . . . . . . . . . . . . . . . 1 . Exploration Rate (%) 40 | 5 37 84 64 44 32 30 86 8 80 19 25 21 89 18 6 62 55 61 50 16 39 10 Regions Visited 22 Branch Regions 7 Pre-discovered Areas 6 | . . . 1 . . . . . . . . . . . . 1 1 3 . . . . Known Exits Taken 12 | . 1 . . . . . . 1 . 1 1 . . 1 1 1 1 1 1 1 1 . Unknown Exits Taken 5 | 1 . 1 1 1 1 . . . . . . . . . . . . . . . . . Scrap Searched 7 | . . 2 . . . . . . . . . . . . . 3 . . 2 . . . Spaces Dug 81 | . . . . . 2 15 . 4 3 1 16 10 . 1 1 1 . . 1 12 13 1 Terrain Destroyed 308 | . . 25 . 43 2 15 . 4 75 7 16 10 . 27 1 1 . . 1 12 33 36 Melee 80 | . . . . . 2 15 . 4 3 1 16 10 . 1 . 1 . . 1 12 13 1 Projectile 13 | . . . . . . . . . 2 6 . . . 4 1 . . . . . . . AOE 215 | . . 25 . 43 . . . . 70 . . . . 22 . . . . . . 20 35 Terrain Rammed . | . . . . . . . . . . . . . . . . . . . . . . . Walls Destroyed . | . . . . . . . . . . . . . . . . . . . . . . . Machines Disabled . | . . . . . . . . . . . . . . . . . . . . . . . Actions | -11 -10 -10 -10 -9 -8 -7 -7 -7 -7 -7 -6 -5 -5 -5 -4 -4 -4 -4 -3 -3 -2 -1 --------- Run | Yrd Mat Min Exi Min Mat Fac Was Fac Gar Fac Fac Fac Was Fac Fac Upp Upp Zhi Pro Res Res Acc Total 11144 | 77 444 405 267 251 364 960 268 261 1048 743 859 712 254 616 263 346 415 173 271 521 1235 391 Wait 961 | . 160 17 . 8 24 67 41 21 84 107 16 39 122 114 46 8 52 . 1 8 19 7 Move 9156 | 56 254 380 260 232 299 806 220 218 770 549 798 590 127 442 202 329 319 154 261 449 1100 341 Hop 18 | . . . . . . . 2 . . . 1 . . . . . . . . 3 10 2 Pick Up 86 | 1 9 3 5 . 6 8 2 1 6 11 6 3 2 2 2 2 2 2 . 5 6 2 Fast Attach 132 | 7 . . . . 7 7 1 2 13 9 4 11 1 9 4 2 4 9 1 12 22 7 Attach 59 | . . . . . 7 3 . 2 8 13 2 5 . 5 1 1 2 . . 2 4 4 Detach 18 | . . . . . 1 . . 1 1 2 . 2 1 5 2 . 1 . . . 1 1 Swap 34 | 1 1 1 . . 2 7 . 2 2 1 3 3 . 2 1 . . . 1 4 3 . Drop 134 | . 3 . 2 1 9 19 2 6 3 19 8 8 1 13 1 3 2 1 2 16 13 2 Fire 141 | 12 17 4 . 10 6 . . . 42 27 . . . 12 1 . . . . . 3 7 Melee 319 | . . . . . 3 43 . 8 33 5 21 51 . 12 3 1 33 7 5 22 54 18 Ram . | . . . . . . . . . . . . . . . . . . . . . . . Kick . | . . . . . . . . . . . . . . . . . . . . . . . Crush . | . . . . . . . . . . . . . . . . . . . . . . . Escape Stasis 27 | . . . . . . . . . 27 . . . . . . . . . . . . . Rewire 59 | . . . . . . . . . 59 . . . . . . . . . . . . . Trap . | . . . . . . . . . . . . . . . . . . . . . . . Miscellaneous . | . . . . . . . . . . . . . . . . . . . . . . . Route ------- -11/Scrapyard -10/Materials (discovered 2 exits: *Min x2) -10/Mines (discovered 2 exits: [*Mat] / *Exi) -10/Exiles -9/Mines -8/Materials -7/Factory -7/Waste -7/Factory -7/Garrison (discovered 3 exits: *Fac x3) -7/Factory -6/Factory (discovered 3 exits: *Fac / Low x2) -5/Factory -5/Waste -5/Factory -4/Factory -4/Upper Caves -4/Upper Caves (discovered 2 exits: *Res / *Zhi) -4/Zhirov -3/Proximity Caves -3/Research (discovered 2 exits: *Res x2) -2/Research (discovered 3 exits: *Acc x2 / Qua) -1/Access History --------- Turn | Location | Event 8 | -11/Scrapyard | Discovered new exit (range 14) 125 | -11/Scrapyard | Entered Materials 138 | -10/Materials | Identified exit to Mines 316 | -10/Materials | Build established: Mutant 753 | -10/Materials | Entered Mines 810 | -10/Mines | Learned Materials terminal intel 1005 | -10/Mines | Discovered new exit (range 13) 1012 | -10/Mines | A weapon hastily lodged in a ceiling crevice suddenly fell to the ground 1384 | -10/Mines | Deemed a non-threat by the Exiles lab entrance 1386 | -10/Mines | Discovered new exit (range 5) 1392 | -10/Mines | Entered Exiles 1431 | -10/Exiles | Met 8R-AWN 1458 | -10/Exiles | Met EX-HEX 1580 | -10/Exiles | Met EX-BIN 1602 | -10/Exiles | Aligned with FarCom system 1604 | -10/Exiles | Given EX-Vault access code 1640 | -10/Exiles | Opened EX-Vault 1650 | -10/Exiles | Found Latent Energy Streamer 1653 | -10/Exiles | Found Trap Reconfigurator 1656 | -10/Exiles | Found Deploy-a-Sentry 1659 | -10/Exiles | Found Deploy-a-Sentry 1661 | -10/Exiles | Found Deploy-a-Sentry 1693 | -10/Exiles | Warned to stay clear of 0b10 Research branches 1746 | -10/Exiles | Learned location of Zion (-6) 1797 | -10/Exiles | Discovered new exit (range 14) 1814 | -10/Exiles | Stole three prototypes: Trap Reconfigurator, Latent Energy Streamer, Deploy-a-Sentry 1814 | -10/Exiles | Entered Mines 1864 | -9/Mines | Met a Derelict bent on vengeance 1942 | -9/Mines | Discovered new exit (range 5) 1959 | -9/Mines | Learned Materials trap positions 2134 | -9/Mines | Assembled infested the area 2214 | -9/Mines | Entered Materials 2214 | -8/Materials | Evolved 4 slots: Propulsion x2, Utility x2 2215 | -8/Materials | Loaded intel: 16 trap records 2216 | -8/Materials | Loaded intel: 12 terminal locations 2376 | -8/Materials | DAS Turret deployed 2414 | -8/Materials | Lost 3 parts (2n1w) 2488 | -8/Materials | Repaired Hover Unit 2546 | -8/Materials | Discovered new exit (range 10) 2556 | -8/Materials | Entered Factory 2556 | -7/Factory | Accompanied by 1 ally 2556 | -7/Factory | Evolved 2 slots: Utility x2 2558 | -7/Factory | FarCom data flow suspended 2970 | -7/Factory | Build established: Scavenger-Scout 2994 | -7/Factory | Discovered new exit (range 11) 2999 | -7/Factory | Identified exit to Lower Caves 3133 | -7/Factory | DAS Turret deployed 3155 | -7/Factory | Sucked down chute 3155 | -7/Factory | Entered Waste 3157 | -7/Waste | Found Prototype Launcher 3173 | -7/Waste | Warlord forces began an assault 3180 | -7/Waste | Spotted C-40 Crusher 3180 | -7/Waste | Spotted C-40 Crusher 3184 | -7/Waste | DAS Turret deployed 3196 | -7/Waste | Allies destroyed C-40 Crusher 3196 | -7/Waste | Allies destroyed C-40 Crusher 3204 | -7/Waste | Spotted C-40 Crusher 3209 | -7/Waste | Spotted C-40 Crusher 3210 | -7/Waste | Spotted C-40 Crusher 3216 | -7/Waste | Allies destroyed C-40 Crusher 3218 | -7/Waste | Spotted C-40 Crusher 3224 | -7/Waste | Lost 6 allies 3232 | -7/Waste | Allies destroyed C-40 Crusher 3235 | -7/Waste | Allies destroyed C-40 Crusher 3245 | -7/Waste | Allies destroyed C-40 Crusher 3266 | -7/Waste | Discovered new exit (range 13) 3292 | -7/Waste | Identified exit to Factory 3315 | -7/Waste | Entered Factory 3315 | -7/Factory | Accompanied by 10 allies 3328 | -7/Factory | Identified Rocket Array 3416 | -7/Factory | Fabricated Linear Gravjet? 3448 | -7/Factory | Identified exit to Garrison 3477 | -7/Factory | Entered Garrison 3477 | -7/Garrison | Accompanied by 7 allies 3743 | -7/Garrison | Lost 5 allies 3797 | -7/Garrison | Lost 10 parts (2p4n2u2w) 3805 | -7/Garrison | Triggered checkpoint 3806 | -7/Garrison | System corruption reached 10% 3809 | -7/Garrison | Triggered checkpoint 3923 | -7/Garrison | Discovered new exit (range 8) 4075 | -7/Garrison | Triggered checkpoint 4098 | -7/Garrison | Identified exit to Factory 4106 | -7/Garrison | Lost 3 parts (2n1w) 4111 | -7/Garrison | Attempted to access garrison exit controls, blocked by remote lockdown 4138 | -7/Garrison | Build established: Scavenger-Mutant 4151 | -7/Garrison | Triggered checkpoint 4214 | -7/Garrison | Lost 5 allies 4533 | -7/Garrison | Triggered checkpoint 4541 | -7/Garrison | Core integrity fell below 50% 4567 | -7/Garrison | Garrison Relay disabled 4683 | -7/Garrison | Discovered exit to Factory (range 10) 4707 | -7/Garrison | Attempted to access garrison exit controls, blocked by remote lockdown 4958 | -7/Garrison | Discovered exit to Factory (range 8) 4970 | -7/Garrison | Entered Factory 5223 | -7/Factory | System corruption reached 30% 5527 | -7/Factory | Discovered new exit (range 6) 5531 | -7/Factory | Identified exit to Factory 5539 | -7/Factory | Entered another Factory area 5539 | -6/Factory | Accompanied by 1 ally 5539 | -6/Factory | Evolved 2 slots: Utility x2 5686 | -6/Factory | Identified exit to Lower Caves 5761 | -6/Factory | Build established: Scout 5786 | -6/Factory | Discovered new exit (range 12) 5794 | -6/Factory | Identified exit to Factory 5839 | -6/Factory | Fabricated Microactuators? 5842 | -6/Factory | Entered another Factory area 5842 | -5/Factory | Accompanied by 2 allies 5842 | -5/Factory | Evolved 2 slots: Utility x2 6040 | -5/Factory | Lost 4 parts (1n3u) 6142 | -5/Factory | Search patrols dispatched 6209 | -5/Factory | Lost 3 parts (1p1n1u) 6289 | -5/Factory | Sucked down chute 6289 | -5/Factory | Entered Waste 6290 | -5/Waste | Joined by Warlord forces that had cleared the area 6317 | -5/Waste | Found Adv. Force Booster 6324 | -5/Waste | Discovered new exit (range 12) 6327 | -5/Waste | Identified exit to Factory 6452 | -5/Waste | Entered Factory 6452 | -5/Factory | Accompanied by 20 allies 6721 | -5/Factory | Lost 4 parts (1p1n1u1w) 6721 | -5/Factory | Garrison activated, responded to threat 6730 | -5/Factory | Lost 8 allies 6752 | -5/Factory | First assault squad dispatched 6787 | -5/Factory | Discovered new exit (range 13) 6787 | -5/Factory | Spotted B-75 Beast 6792 | -5/Factory | Identified exit to Factory 6794 | -5/Factory | Entered another Factory area 6794 | -4/Factory | Accompanied by 1 ally 6794 | -4/Factory | Evolved 2 slots: Power x1, Propulsion x1 6800 | -4/Factory | Lost 4 allies 6892 | -4/Factory | Repaired Antigrav System 6916 | -4/Factory | Repaired Linear Gravjet 6922 | -4/Factory | Discovered new exit (range 11) 6928 | -4/Factory | Identified exit to Upper Caves 6943 | -4/Factory | Entered Upper Caves 6943 | -4/Upper Caves | Accompanied by 1 ally 6944 | -4/Upper Caves | Encountered a Warlord checkpoint 6949 | -4/Upper Caves | Met a Warlord Commander 6951 | -4/Upper Caves | Warlord Commander delivered Encrypted Comm Array 6961 | -4/Upper Caves | Found Encrypted Comm Array 7050 | -4/Upper Caves | Attracted the attention of an 0b10 outpost 7100 | -4/Upper Caves | Discovered new exit (range 9) 7103 | -4/Upper Caves | Identified exit to Upper Caves 7104 | -4/Upper Caves | Entered another Upper Caves area 7122 | -4/Upper Caves | Discovered new exit (range 13) 7153 | -4/Upper Caves | Lost 3 parts (2n1u) 7210 | -4/Upper Caves | Identified exit to Research 7358 | -4/Upper Caves | Attracted the attention of an 0b10 outpost 7423 | -4/Upper Caves | Core integrity fell below 50% 7430 | -4/Upper Caves | Learned location of Quarantine (-2) 7435 | -4/Upper Caves | Lost 5 parts (1p2n2u) 7447 | -4/Upper Caves | Spotted 4W-0QC(f) 7448 | -4/Upper Caves | Spotted HS-A3G(f) 7449 | -4/Upper Caves | Encountered a Master Thief 7449 | -4/Upper Caves | Encountered a Master Thief 7451 | -4/Upper Caves | Self-destruct Interrupter stolen by Master Thief 7456 | -4/Upper Caves | Destroyed 4W-0QC(f) 7459 | -4/Upper Caves | Discovered new exit (range 10) 7463 | -4/Upper Caves | Learned location of 1 exit from Upper Caves 7465 | -4/Upper Caves | Identified exit to Zhirov 7466 | -4/Upper Caves | Entered Zhirov 7466 | -4/Zhirov | Discovered new exit (range 3) 7473 | -4/Zhirov | Met Zhirov 7479 | -4/Zhirov | Learned location of Testing (-3) 7479 | -4/Zhirov | Learned location of Command (-1) 7482 | -4/Zhirov | Zhirov requested help retrieving the SGEMP Prototype 7487 | -4/Zhirov | Found Alien Artifact 7487 | -4/Zhirov | Identified Integrated Reactor 7487 | -4/Zhirov | Installed Integrated Reactor, increased core energy generation (+10) 7492 | -4/Zhirov | Found Alien Artifact 7543 | -4/Zhirov | Identified exit to Proximity Caves 7543 | -4/Zhirov | Entered Proximity Caves 7610 | -3/Proximity Caves | Discovered exit to Research (range 21) 7621 | -3/Proximity Caves | Entered Research 7621 | -3/Research | Evolved 2 slots: Propulsion x1, Utility x1 7658 | -3/Research | Discovered new exit (range 14) 7710 | -3/Research | Spotted B-86 Titan 7784 | -3/Research | Found Fusion Bomb Launcher 7800 | -3/Research | Discovered new exit (range 11) 7807 | -3/Research | Identified exit to Research 7810 | -3/Research | Entered another Research area 7810 | -2/Research | Evolved 2 slots: Utility x2 7811 | -2/Research | Identified exit to Quarantine 7842 | -2/Research | Found Prototype Device 7842 | -2/Research | Identified Exp. EM Disruption Field 7869 | -2/Research | Found Prototype Slashing Weapon 7869 | -2/Research | Identified Vibroblade 7946 | -2/Research | Fabricated Exp. Optical Array (x1) 8044 | -2/Research | Spotted B-90 Cyclops 8078 | -2/Research | Discovered new exit (range 16) 8134 | -2/Research | Spotted B-90 Cyclops 8199 | -2/Research | System corruption reached 10% 8225 | -2/Research | Core integrity fell below 50% 8241 | -2/Research | Spotted B-90 Cyclops 8270 | -2/Research | Core integrity fell below 20% 8271 | -2/Research | Found Prototype Device 8271 | -2/Research | Identified Exp. Shock Absorption System 8278 | -2/Research | Identified Transdimensional Reconstructor 8278 | -2/Research | Warped through subspace 8293 | -2/Research | Lost 21 parts (1p9n10u1w) 8301 | -2/Research | Discovered new exit (range 23) 8310 | -2/Research | Search patrols dispatched 8313 | -2/Research | Identified exit to Access 8314 | -2/Research | Entered Access 8314 | -1/Access | Evolved 2 slots: Utility x2 8484 | -1/Access | Build established: Mutant 8548 | -1/Access | Lost 5 parts (2n3u) 8557 | -1/Access | Garrison activated, responded to threat 8561 | -1/Access | Core integrity fell below 50% 8571 | -1/Access | Self-destructed Last Messages --------------- 08559_ Fusion Bomb Launcher destroyed. 08559_ Penetrated by Slug. 08560_ Vibroblade destroyed. 08560_ Slug penetrates Reinforced Barrier. 08562_ The unstable cave ceiling collapses. 08562_ Penetrated by Slug. 08562_ Adv. Target Analyzer destroyed. 08563_ Slug penetrates H-88 Terminator. 08563_ Penetrated by Slug. 08564_ Slug penetrates Reinforced Barrier. 08566_ The unstable cave ceiling collapses. 08566_ Slug penetrates Sealed Barrier. 08566_ Slug penetrates H-88 Terminator. 08566_ Penetrated by Slug. 08569_ Slug penetrates Reinforced Barrier. 08569_ Slug penetrates Sealed Barrier. 08569_ Penetrated by Slug. 08569_ H-88 Terminator destroyed. 08570_ Slug penetrates Reinforced Barrier. 08570_ Enh. Nova Cannon destroyed. Map ----- +----------------------------------------------------+ | ?????????????????????????????????????????????????? | | ?????????????????????????????????????????????????? | | ?????????????????????????????????????????????????? | | ?????????????????????????????????????????????????? | | ?????????????????????????????????????????????????? | | ?????????????????????????????????????????????????? | | ?????????????????????????????????????????????????? | | ?????????????????????????????????????????????????? | | ?????????????????????????????????????????????????? | | ?????????????????????????????????????????????????? | | ????????#######??????????????????????????????????? | | ???????? #??????????????????????????????????? | | ????????? #??????????????????????????????????? | | ????????? #??????????????????????????????????? | | ??????????" ] #??????????????????????????????????? | | ?????????? #??????????????????????????????????? | | ??????? ??? #??????????????????????????????????? | | ?????? " #??????????????????????????????????? | | ???????? ##?????????????????????????????????? | | ?????????? # ?###????????????????????????????? | | ### ########g ## ##?????????????????????????? | | #?????????????????????????? | | *%= h %h ?????????????????????????? | | #############/###T# % #####????????????????????? | | ????????# !! ### "????????????????????? | | ????????# #?# @ "????????????????????? | | ????????# #?# "??????????#########?? | | ????????# #?# "??????????# | | ????????# #?## # "??????????# | | ????????# #??##########??????????# | | ????????# #?####################?# " | | ????????# #?# #?# """ | | ????????# #?# #?# """ | | ????????# #?# #?# " | | ????????# #?# #?# | | ????????##/######?# #?# | | ?????????# #??????# #?# ? | | ???????### ###????# #?# ??? | | ???????# #????# #?? ????? | | ???????# T ###############+##+##########+####### | | ???????+ "" [% | | ???????# #########+## | | ???????# #???#] * # | | ???????## ##???# # | | ????????# #????# * # | | ????????# #????# # ! | | ????????# #????# # |[[ | | ???????## ##???# ###########+########## | | ???????# ############????# %*= #??# ^^ | | ???????# ####### !!* #### | +----------------------------------------------------+ Best States ------------- Heat Dissipation 62 Energy Generation 53 Energy Capacity 385 Matter Stores 300 Matter Capacity 300 Sight Range 23 Robot Scan Range 16 Terrain Scan Density 10 Jamming Range 14 Power Amplification 30 Base Temperature (-) 200 Resistance: EX 75 Weapon Shielding 90 Melee Speed Boost 40 Evasion (%) 65 Melee Accuracy 18 Launcher Accuracy 30 Target Analysis 9 Core Analysis 6 Recoil Reduction 4 Particle Charging 30 Force Boost 20 Offensive Hacking 10 Defensive Hacking 26 Authchip Count 2 Item Schematics ----------------- Microactuators | -6/Factory | Hacked Assault Drone Bay | -4/Zhirov | Free Exp. Heat Sink | -4/Zhirov | Free Exp. Optical Array | -4/Zhirov | Free Imp. Arc Thrower | -4/Zhirov | Free Robot Schematics ------------------ M-13 Machinist | -10/Materials | Hacked Fabricated ------------ Linear Gravjet | x2 | -7/Factory | Preloaded Microactuators | x2 | -6/Factory | Authchip Exp. Optical Array | x1 | -2/Research Alien Tech Used ----------------- Integrated Reactor Transdimensional Reconstructor Achievements -------------- None Challenges ------------ None Game ------ Seed MachineThermalPurifier Manual? 0 Play Time 01:55:51 Cumulative 264.5 hours Start 2024.06.17 @ 19:50:09 End 2024.06.17 @ 21:47:16 Sessions 1 Manual Loads 0 Difficulty Rogue Special Mode None Game No. 254 Rogue 249 Adventurer 5 Explorer 0 Win Type - Total 4 Types 3/0/0/1/0/0/0/0/0 Lore% 65 Gallery% 83 Achievement% 64 Wizard Run 0 Options --------- Layout 2 ASCII 0 Keyboard 0 Movement Mouse Keybinds 0 Fullscreen 1 Font 24/Terminus Map View 50x44 Zoom Use 0% Tactical HUD 1 Map Filters NONE Filters NONE Steam 1 RUN: 7bfe3500-183a-4a8f-b791-1d43ef7f5847